bitfinex/quotes_ETHUSD_20260126
["timestamp","ask_amount","ask_price","bid_price","bid_amount"]
[1769437655512,12.7507583,2893.2,2891.4,12.64193515]
[1769437655814,0.128,2893.1,2891.4,13.50656125]
[1769437656380,0.128,2893.1,2891.5,12.64193515]
[1769437656909,0.0018,2893.5,2891.5,12.64193515]
[1769437657080,0.0018,2893.5,2891.7,12.64193515]
[1769437657695,0.128,2893.3,2891.8,0.725]
[1769437657897,12.8787583,2893.3,2891.9,12.64193515]
[1769437658418,0.001,2892.3,2891.9,12.64193515]
[1769437660397,0.1298,2893.5,2892.0,12.64193515]
[1769437660710,0.1298,2893.5,2892.2,12.64193515]
[1769437660921,0.1298,2893.5,2892.3,0.725]
[1769437661090,12.8805583,2893.5,2892.3,0.725]
[1769437661446,12.8805583,2893.5,2891.3,1.26419352]
[1769437661621,12.8805583,2893.5,2891.4,0.725]
[1769437661920,12.8805583,2893.5,2891.4,13.36693515]
[1769437664017,12.8787583,2893.4,2891.4,13.36693515]
[1769437669142,12.8787583,2893.4,2891.4,14.2315641]
[1769437669355,0.0018,2893.5,2891.4,14.23156314]
[1769437669656,0.0018,2893.5,2891.6,12.80298805]
[1769437669798,0.0018,2893.5,2891.6,12.80498805]
[1769437670334,0.001,2893.2,2891.6,12.80498805]
[1769437670629,0.001,2893.2,2891.8,12.80298805]
[1769437671027,0.001,2893.2,2892.0,12.80298805]
[1769437671236,0.001,2893.2,2892.2,12.80298805]
[1769437673516,0.0018,2893.5,2892.3,12.80298805]
[1769437674331,0.0018,2893.5,2892.4,0.725]
[1769437674844,0.128,2893.6,2892.4,0.725]
[1769437674845,0.1266,2893.6,2892.4,0.725]
[1769437675046,0.1266,2893.6,2892.4,13.52798805]
[1769437675206,0.1266,2893.6,2892.5,14.15578686]
[1769437675704,0.001,2893.7,2892.5,14.15578686]
[1769437676333,12.89473492,2893.7,2892.6,0.725]
[1769437676649,13.02173492,2893.6,2892.7,0.725]
[1769437681137,13.02173492,2893.6,2891.8,12.80298805]
[1769437681319,13.02173492,2893.6,2891.9,0.725]
[1769437682246,0.001,2893.7,2891.8,14.08348686]
[1769437682247,0.128,2892.6,2891.8,0.725]
[1769437683455,0.128,2892.9,2891.8,0.725]
[1769437683656,0.128,2892.9,2891.8,13.52798805]
[1769437683840,0.128,2892.9,2892.0,12.80298805]
[1769437686762,0.128,2893.3,2892.0,12.80298805]
[1769437687056,0.128,2893.2,2892.0,12.80298805]
[1769437687628,13.02173492,2893.2,2892.1,0.725]
[1769437688227,13.02173492,2893.2,2892.1,2.21307869]
[1769437688727,13.02173492,2893.2,2892.1,15.01606674]
[1769437688959,0.129,2893.4,2892.1,15.01606674]
[1769437689760,0.129,2893.4,2892.1,15.00068474]
[1769437690937,0.001,2893.4,2892.1,15.00068474]
[1769437691143,0.001,2893.4,2892.3,12.80298805]
[1769437693740,0.001,2893.4,2892.3,12.80498805]
[1769437694249,0.001,2893.2,2892.3,12.80498805]
[1769437696064,0.001,2893.2,2892.4,12.80298805]
[1769437697432,0.129,2893.2,2892.5,0.725]
[1769437698281,0.129,2893.2,2892.6,0.725]
[1769437698833,0.129,2893.2,2892.3,0.002]
[1769437699034,0.128,2893.1,2892.3,0.002]
[1769437699234,0.128,2893.1,2892.3,0.7678088]
[1769437700235,0.001,2893.2,2892.3,0.7678088]
[1769437704169,0.001,2893.2,2892.3,14.54447947]
[1769437704476,0.128,2893.1,2892.3,0.7678088]
[1769437706883,0.001,2893.0,2892.3,0.7678088]
[1769437708278,0.001,2893.0,2892.3,13.77867067]
[1769437712580,13.78550375,2893.0,2892.3,0.002]
[1769437712781,0.128,2892.7,2892.3,0.002]
[1769437716992,13.78550375,2893.0,2892.3,0.002]
[1769437716993,0.128,2892.9,2892.3,0.002]
[1769437719781,0.001,2893.0,2892.3,13.77867067]
[1769437719979,0.001,2893.0,2892.3,15.22903774]
[1769437720512,0.001,2893.2,2892.4,13.77667067]
[1769437720890,0.001,2893.4,2892.5,13.77667067]
[1769437721191,0.128,2894.2,2892.6,13.77667067]
[1769437721394,13.91250375,2894.0,2892.6,13.77667067]
[1769437721594,0.128,2893.5,2892.6,13.72667067]
[1769437721797,0.18066605,2895.1,2892.3,0.002]
[1769437721798,0.128,2892.7,2892.3,0.002]
[1769437721998,13.91250375,2892.7,2892.0,0.002]
[1769437724602,0.725,2894.0,2892.0,0.002]
[1769437724603,0.128,2892.9,2892.0,0.002]
[1769437726083,0.128,2892.9,2892.0,13.77867067]
[1769437727571,0.128,2893.2,2892.0,15.15653774]
[1769437729874,0.001,2892.7,2892.0,15.15653774]
[1769437730610,0.001,2892.7,2892.0,1.37986707]
[1769437730907,0.001,2892.7,2891.7,13.19030268]
[1769437731079,13.07206874,2892.5,2891.6,0.002]
[1769437732607,13.07206874,2892.5,2890.9,0.002]
[1769437732771,0.1805859,2890.9,2889.6,0.725]
[1769437732978,0.1805859,2890.9,2889.7,13.23830268]
[1769437733288,0.1805859,2890.9,2889.8,1.39633027]
[1769437733907,0.1805859,2890.9,2889.8,14.63463295]
[1769437734104,13.07206874,2890.8,2889.6,0.725]
[1769437736620,13.07206874,2890.8,2889.2,0.002]
[1769437739485,13.07206874,2890.8,2889.2,13.24030268]
[1769437741172,10.0,2892.9,2889.2,13.24030268]
[1769437741173,0.128,2891.0,2889.2,13.24030268]
[1769437741377,0.128,2891.0,2889.4,13.23830268]
[1769437742115,12.94406874,2891.8,2889.4,13.23830268]
[1769437742476,0.128,2891.5,2889.6,13.23830268]
[1769437742677,0.128,2891.4,2889.6,13.23830268]
[1769437742891,0.128,2891.4,2889.8,13.23830268]
[1769437744025,0.128,2891.5,2889.8,13.23830268]
[1769437744222,12.94406874,2891.3,2889.8,13.23830268]
[1769437744432,0.128,2891.2,2889.8,13.23830268]
[1769437745002,13.07206874,2891.2,2889.8,13.23830268]
[1769437745202,13.07206874,2891.2,2889.9,14.70176598]
[1769437748213,12.94406874,2891.8,2889.9,14.70176598]
[1769437748406,13.07206874,2891.7,2889.9,14.70176598]
[1769437749144,13.07206874,2891.7,2889.9,14.68370739]
[1769437749740,0.18045366,2891.6,2889.9,14.68370739]
[1769437750043,0.18045366,2891.6,2890.1,13.23830268]
[1769437752023,0.128,2891.9,2890.1,13.23830268]
[1769437753152,0.18047803,2892.1,2890.1,13.07577537]
[1769437753463,0.001,2891.4,2890.3,13.23830268]
[1769437753658,0.001,2891.4,2890.4,13.23830268]
[1769437753859,0.001,2891.4,2890.6,13.23830268]
[1769437754060,0.001,2891.4,2890.5,1.32383027]
[1769437754362,0.128,2890.3,2888.5,0.002]
[1769437754529,0.128,2889.9,2888.5,0.002]
[1769437754722,13.42797352,2890.3,2888.7,13.24030268]
[1769437754938,0.128,2890.0,2888.7,13.24030268]
[1769437756166,0.128,2890.2,2888.7,13.24030268]
[1769437757756,0.128,2890.1,2888.7,13.24030268]
[1769437757961,0.128,2890.1,2889.0,13.24030268]
[1769437758260,0.128,2889.7,2889.0,0.002]
[1769437759272,13.13121083,2889.7,2888.7,0.002]
[1769437759760,0.128,2890.0,2888.7,0.002]
[1769437759926,13.00123083,2890.0,2888.7,0.002]
[1769437760126,0.128,2889.9,2888.7,0.002]
[1769437760354,13.12923083,2889.9,2888.7,0.002]
[1769437761364,13.12923083,2889.9,2888.5,0.002]
[1769437761365,13.12725083,2889.7,2888.5,0.002]
[1769437761546,0.128,2889.4,2888.5,0.002]
[1769437762643,0.128,2889.7,2888.5,0.002]
[1769437763965,0.128,2890.0,2888.5,13.26087544]
[1769437764369,13.12725083,2890.0,2888.5,13.26087544]
[1769437765068,13.12725083,2890.0,2888.7,0.002]
[1769437765361,0.001,2889.5,2888.7,0.002]
[1769437766284,0.001,2889.5,2888.7,13.26087544]
[1769437771371,0.001,2889.5,2888.7,0.002]
[1769437773685,0.001,2889.5,2888.7,13.26087544]
[1769437776389,0.001,2889.5,2888.7,0.81250963]
[1769437777389,0.001,2889.5,2888.5,13.26087544]
[1769437777590,0.001,2889.5,2888.6,1.32608754]
[1769437777755,0.001,2889.5,2888.6,14.58496298]
[1769437780460,0.129,2889.5,2888.5,0.002]
[1769437781673,13.37379736,2889.5,2888.5,0.002]
[1769437781907,0.128,2889.4,2888.5,0.002]
[1769437784543,0.128,2889.4,2888.5,13.26087544]
[1769437784843,3.45941289,2890.7,2888.5,13.26087544]
[1769437784844,13.50079736,2890.4,2888.6,13.25887544]
[1769437786603,13.50079736,2890.4,2888.7,13.98487544]
[1769437786825,13.50079736,2890.2,2888.8,14.65736298]
[1769437788324,13.50179736,2890.2,2888.8,14.65736298]
[1769437798816,14.03173189,2890.2,2888.8,14.65736298]
[1769437799017,13.50179736,2890.2,2888.8,14.65736298]
[1769437799734,0.129,2890.2,2888.8,14.65736298]
[1769437799947,0.001,2890.2,2889.0,13.62128462]
[1769437800120,13.17434543,2890.2,2889.0,13.62128462]
[1769437800437,13.17434543,2890.2,2889.0,13.62328462]
[1769437800438,0.001,2890.2,2889.0,13.62328462]
[1769437800691,0.001,2890.0,2889.0,13.62328462]
[1769437800848,0.128,2889.8,2888.9,1.5383363]
[1769437801048,0.1804092,2888.6,2887.9,13.62328462]
[1769437801211,0.128,2889.2,2888.0,13.62128462]
[1769437802121,0.128,2889.5,2888.0,13.62128462]
[1769437802511,13.30134543,2889.5,2888.0,13.62128462]
[1769437802918,13.30134543,2889.5,2888.0,13.57128462]
[1769437803119,13.30134543,2889.3,2887.9,0.002]
[1769437803320,13.30134543,2889.1,2887.8,0.727]
[1769437803530,13.30134543,2889.1,2887.7,0.002]
[1769437803531,13.30134543,2889.1,2887.7,13.62328462]
[1769437804439,13.30134543,2889.1,2887.6,736.96876792]
[1769437804638,1.33013454,2889.4,2887.6,736.96876792]
[1769437804639,13.30134543,2888.9,2887.6,736.96876792]
[1769437804844,13.30134543,2888.7,2887.6,736.96876792]
[1769437805341,0.128,2888.7,2887.7,13.62128462]
[1769437805541,13.17334543,2889.1,2887.7,13.62128462]
[1769437805748,13.17334543,2889.4,2887.7,13.62128462]
[1769437805946,0.128,2889.3,2887.8,13.62128462]
[1769437806145,0.128,2889.3,2887.6,736.96876792]
[1769437806146,0.128,2889.3,2888.0,13.62128462]
[1769437806829,13.30134543,2889.3,2888.0,13.62128462]
[1769437807145,13.30134543,2889.3,2887.9,1.36212846]
[1769437807320,14.16660696,2889.3,2887.6,736.96876792]
[1769437807731,13.30134543,2889.3,2887.7,13.62128462]
[1769437808043,13.30134543,2889.3,2887.9,13.62128462]
[1769437808650,13.30134543,2889.3,2887.8,3.56474468]
[1769437808651,14.16661134,2889.3,2887.8,3.56474468]
[1769437808942,14.16661134,2889.3,2887.6,736.96876792]
[1769437809541,14.16661134,2889.3,2887.6,728.08514679]
[1769437809738,13.30134543,2889.1,2887.6,728.08514679]
[1769437809939,13.30134543,2889.1,2887.6,724.52040211]
[1769437810148,13.30134543,2889.1,2887.6,723.28809216]
[1769437810527,13.30134543,2889.1,2887.6,714.40447103]
[1769437810734,13.30134543,2888.9,2887.6,714.40447103]
[1769437811049,14.71801406,2888.9,2887.7,3.56474468]
[1769437811418,14.71801406,2888.9,2887.6,714.40447103]
[1769437811645,14.71801406,2888.9,2887.6,704.28853995]
[1769437812231,14.71801406,2888.9,2887.6,701.95610522]
[1769437812633,14.71801406,2888.9,2887.6,691.84017414]
[1769437812821,15.5833977,2888.9,2887.6,691.84017414]
[1769437813177,15.5833977,2888.9,2887.6,690.60786419]
[1769437813457,15.5833977,2888.9,2887.6,689.50773941]
[1769437813659,15.5833977,2888.9,2887.6,679.39180833]
[1769437813862,15.5843977,2888.9,2887.6,678.15949838]
[1769437814034,0.128,2888.2,2887.6,678.15949838]
[1769437814352,0.128,2888.2,2887.6,677.0593736]
[1769437814548,0.128,2888.2,2887.6,666.94344252]
[1769437815329,0.128,2888.2,2887.6,663.70079987]
[1769437815539,0.128,2888.5,2887.6,660.45815722]
[1769437815744,0.128,2888.3,2887.6,658.72406376]
[1769437815949,0.128,2888.3,2887.6,657.85701703]
[1769437816140,0.128,2888.3,2887.6,654.61437438]
[1769437816341,0.128,2888.3,2887.6,652.88028092]
[1769437816536,13.30134543,2888.3,2887.6,650.93009421]
[1769437816728,14.50347997,2888.2,2887.6,646.17890237]
[1769437816928,14.50347997,2888.2,2887.6,644.44480891]
[1769437817124,14.50347997,2888.2,2887.6,643.57776218]
[1769437817324,14.50347997,2888.2,2887.6,641.84366872]
[1769437817525,14.50347997,2888.2,2887.7,0.0032]
[1769437817721,14.50347997,2888.2,2887.6,641.84366872]
[1769437817963,14.50347997,2888.2,2887.6,642.56966872]
[1769437818257,0.128,2888.0,2887.6,642.56966872]
[1769437818663,0.128,2888.0,2887.6,641.77908133]
[1769437820074,1.463148,2888.1,2887.6,641.05308133]
[1769437820382,15.66718662,2888.1,2887.6,629.34313734]
[1769437820580,15.66718662,2888.1,2887.6,610.10174238]
[1769437820784,13.33841684,2887.9,2887.6,548.97594214]
[1769437820986,13.20503267,2887.7,2887.6,429.69366113]
[1769437821144,13.20503267,2887.7,2887.6,209.30476061]
[1769437821346,13.20503267,2887.7,2885.9,0.004022]
[1769437821347,2.11973661,2887.3,2885.9,0.004022]
[1769437821665,13.33841684,2886.1,2884.8,0.676]
[1769437821860,0.18075038,2886.2,2884.8,0.5722]
[1769437821861,14.06441684,2886.0,2884.8,0.5722]
[1769437822046,0.128,2885.9,2884.8,0.49539627]
[1769437822248,0.128,2885.9,2884.8,13.51329598]
[1769437822557,0.128,2885.9,2885.0,13.12087439]
[1769437822748,2.11973661,2887.3,2885.1,13.12087439]
[1769437822949,2.11973661,2887.3,2885.3,13.12087439]
[1769437823259,2.03685517,2887.3,2885.4,13.12087439]
[1769437823459,2.03685517,2887.3,2885.6,13.12087439]
[1769437823662,2.03685517,2887.3,2885.8,13.12087439]
[1769437824191,15.37527201,2887.3,2885.8,13.12087439]
[1769437824359,13.33841684,2887.2,2885.7,0.726]
[1769437824774,13.33841684,2886.7,2885.0,13.84687439]
[1769437824949,0.128,2886.6,2885.0,13.84687439]
[1769437825149,0.128,2886.6,2885.1,1.5198204]
[1769437825560,0.128,2886.6,2885.0,13.84687439]
[1769437825561,14.19241684,2886.6,2885.0,0.726]
[1769437825760,14.19241684,2886.6,2884.3,1.97377659]
[1769437825966,14.19241684,2886.6,2884.3,15.09465098]
[1769437826187,13.46641684,2886.6,2884.3,15.09465098]
[1769437826365,0.128,2886.6,2884.6,13.12087439]
[1769437826553,0.128,2886.9,2884.8,13.12087439]
[1769437826754,13.46641684,2886.9,2884.8,13.12087439]
[1769437826953,13.46641684,2886.7,2884.8,13.12087439]
[1769437827154,0.128,2886.7,2884.8,13.12087439]
[1769437827588,0.128,2886.7,2885.0,13.12087439]
[1769437827788,0.128,2886.7,2885.2,13.12087439]
[1769437828093,0.128,2886.5,2885.2,13.12087439]
[1769437828459,0.128,2886.5,2885.2,13.07087439]
[1769437829186,0.128,2886.3,2884.3,14.36865098]
[1769437829374,13.46641684,2886.3,2884.5,13.12087439]
[1769437829575,13.46641684,2886.3,2884.4,1.4370651]
[1769437829768,13.46641684,2886.1,2884.3,1.24777659]
[1769437830476,13.33841684,2886.1,2884.3,1.24777659]
[1769437830704,0.128,2885.8,2884.3,1.24777659]
[1769437830882,13.46641684,2885.6,2884.3,1e-08]
[1769437831077,13.46641684,2885.6,2884.2,0.002]
[1769437831078,0.1800626,2884.3,2882.5,13.12087439]
[1769437831251,0.1808,2883.0,2882.7,1.31538744]
[1769437831453,0.1808,2883.0,2881.8,0.726]
[1769437831677,0.1808,2883.0,2881.8,13.84687439]
[1769437831879,0.11125259,2883.0,2881.8,13.84687439]
[1769437832192,0.128,2883.9,2882.1,13.12087439]
[1769437832491,0.128,2883.9,2882.0,6.78805941]
[1769437832492,0.128,2883.9,2882.7,13.12087439]
[1769437832653,0.1800626,2884.3,2882.9,13.12087439]
[1769437833052,0.128,2885.0,2883.2,13.12087439]
[1769437833301,0.128,2885.0,2883.2,13.07087439]
[1769437833592,0.128,2885.0,2882.8,2.03808744]
[1769437833593,13.46641684,2884.8,2882.8,2.03808744]
[1769437833795,13.46641684,2884.6,2882.8,2.03808744]
[1769437833998,0.128,2884.4,2882.7,13.12087439]
[1769437834202,13.46641684,2884.4,2882.1,13.12087439]
[1769437834354,17.821278,2883.9,2882.1,13.12087439]
[1769437834555,17.821278,2883.9,2881.0,6.78805941]
[1769437834556,0.128,2883.6,2881.6,13.12387439]
[1769437834790,0.128,2883.6,2881.7,1.31238744]
[1769437835001,0.128,2883.2,2881.7,1.26238744]
[1769437835183,0.128,2883.0,2881.6,0.003]
[1769437835351,0.128,2882.8,2881.6,0.003]
[1769437835755,6.642647,2882.7,2881.6,0.003]
[1769437835956,0.86706204,2883.3,2881.6,13.12387439]
[1769437836293,0.128,2882.8,2881.6,0.003]
[1769437836490,0.128,2882.6,2881.6,0.003]
[1769437837192,0.99528522,2882.6,2881.6,0.003]
[1769437837488,0.99528522,2882.6,2880.5,13.12087439]
[1769437837663,0.128,2882.4,2880.5,13.12087439]
[1769437837994,0.128,2882.5,2880.6,1.31238744]
[1769437838220,14.20565935,2882.8,2880.6,13.87576183]
[1769437838356,19.462817,2882.6,2880.6,13.87576183]
[1769437838562,0.128,2882.6,2880.6,13.87576183]
[1769437839792,0.128,2882.4,2880.6,13.87576183]
[1769437840000,0.128,2882.4,2880.8,13.12087439]
[1769437840292,0.128,2882.4,2880.8,13.07087439]
[1769437841077,2.03722642,2882.5,2881.1,13.12087439]
[1769437841457,2.90453106,2882.5,2881.1,13.12087439]
[1769437841769,2.03722642,2882.5,2881.1,13.12087439]
[1769437841978,2.03722642,2882.5,2881.2,14.43296183]
[1769437843172,0.128,2882.4,2881.2,14.43296183]
[1769437843800,0.86685159,2884.0,2881.4,13.12087439]
[1769437844101,23.33841684,2884.6,2881.6,13.12087439]
[1769437844102,15.324836,2884.4,2881.6,13.12087439]
[1769437844291,14.331631,2884.8,2881.8,13.12087439]
[1769437844476,0.128,2884.7,2882.0,13.12087439]
[1769437844677,0.128,2884.3,2882.0,13.12087439]
[1769437845273,0.128,2884.1,2882.2,13.07087439]
[1769437845497,0.128,2883.9,2882.2,13.07087439]
[1769437845805,0.86678325,2884.3,2882.2,13.07087439]
[1769437846006,0.128,2884.0,2882.3,1.30708744]
[1769437846315,0.86678325,2884.3,2882.3,14.42796183]
[1769437846499,0.128,2884.0,2882.3,14.42796183]
[1769437846685,0.128,2884.3,2882.3,14.42796183]
[1769437847211,0.128,2884.1,2882.3,14.42796183]
[1769437847408,0.128,2884.1,2882.4,14.56367057]
[1769437847576,0.86679091,2884.3,2882.4,14.56367057]
[1769437847771,0.128,2884.2,2882.4,14.56367057]
[1769437848912,0.128,2884.0,2882.4,14.56367057]
[1769437849278,0.99485547,2884.0,2882.4,14.56367057]
[1769437849479,0.128,2884.0,2882.5,1.45636706]
[1769437849681,0.86686168,2884.0,2882.5,1.40636706]
[1769437849894,2.834064,2883.5,2881.9,13.78245253]
[1769437850204,0.128,2883.6,2881.9,13.78245253]
[1769437850404,0.129,2883.6,2881.9,13.78245253]
[1769437851095,3.46664164,2884.7,2882.1,13.78245253]
[1769437851096,0.128,2884.1,2882.1,13.78245253]
[1769437851606,2.03722642,2884.0,2882.1,13.78245253]
[1769437851778,0.128,2883.9,2882.3,13.78245253]
[1769437853183,0.128,2883.5,2882.2,1.37824525]
[1769437853386,0.128,2883.5,2881.8,13.78445253]
[1769437854307,0.128,2883.3,2882.0,13.78245253]
[1769437854506,0.86670133,2884.5,2882.2,13.78245253]
[1769437854808,2.668445,2884.4,2882.2,13.78245253]
[1769437855015,4.71029,2884.5,2882.2,13.78245253]
[1769437855311,2.146547,2885.2,2882.8,13.78245253]
[1769437855510,3.536628,2885.2,2883.0,13.78245253]
[1769437855705,2.669628,2885.2,2883.0,13.78245253]
[1769437856213,2.669628,2885.2,2883.2,13.78245253]
[1769437856412,0.128,2885.1,2883.2,13.78245253]
[1769437856591,6.400805,2885.9,2883.4,13.78245253]
[1769437856788,0.128,2885.8,2883.4,13.28245253]
[1769437856988,3.46504276,2886.0,2883.4,13.28245253]
[1769437857189,0.128,2885.5,2883.4,13.28245253]
[1769437857800,0.86625086,2886.0,2883.4,13.28245253]
[1769437858022,6.81689455,2885.6,2883.5,15.24852231]
[1769437858323,0.128,2885.5,2883.5,15.24852231]
[1769437858520,0.128,2885.3,2883.5,15.24852231]
[1769437858826,0.128,2885.5,2883.5,15.24852231]
[1769437859523,0.99440196,2885.5,2883.5,15.24852231]
[1769437859722,0.128,2885.3,2883.6,15.30730476]
[1769437860798,0.86632798,2885.8,2883.6,15.30730476]
[1769437860799,0.128,2885.8,2883.6,15.30730476]
[1769437861000,0.128,2885.8,2883.6,1.52485223]
[1769437861001,13.4893037,2885.6,2883.6,1.52485223]
[1769437861209,0.128,2885.2,2883.6,15.30730476]
[1769437862122,13.3613037,2886.5,2884.0,13.78245253]
[1769437862420,0.128,2886.2,2884.2,13.78245253]
[1769437862588,13.4893037,2886.0,2884.1,1.37824525]
[1769437862789,13.4893037,2886.0,2883.7,13.73245253]
[1769437863024,0.001,2885.7,2883.7,13.73245253]
[1769437863585,0.001,2885.7,2883.7,14.59937441]
[1769437863819,0.001,2885.7,2885.2,1e-08]
[1769437865520,0.001,2885.7,2883.7,13.78245253]
[1769437865760,0.128,2885.4,2883.8,1.53073048]
[1769437865898,13.4893037,2885.2,2883.2,14.50945253]
[1769437866095,9.774619,2884.9,2883.2,14.50945253]
[1769437866314,0.128,2885.4,2883.2,14.50945253]
[1769437866516,0.128,2885.0,2883.2,13.78245253]
[1769437866726,0.128,2885.0,2883.3,1.37824525]
[1769437867026,7.232817,2884.7,2883.3,1.37824525]
[1769437867326,13.3613037,2885.4,2883.3,15.16069778]
[1769437867327,0.128,2884.9,2883.3,15.16069778]
[1769437868391,0.128,2885.1,2883.3,15.16069778]
[1769437869532,0.99447925,2885.3,2883.3,15.16069778]
[1769437869738,0.128,2885.3,2883.5,13.78245253]
[1769437870246,8.24564324,2886.9,2884.3,13.78245253]
[1769437870416,2.578,2886.7,2884.3,14.50945253]
[1769437870611,13.3613037,2886.2,2883.8,13.78245253]
[1769437870953,0.128,2885.4,2883.8,13.78245253]
[1769437872140,0.99422085,2886.1,2883.8,13.78245253]
[1769437872343,0.128,2885.7,2883.8,13.78245253]
[1769437872926,0.128,2885.7,2883.8,14.64935686]
[1769437873123,0.128,2885.7,2883.8,14.50945253]
[1769437873321,6.313736,2885.4,2883.9,13.78245253]
[1769437873524,0.128,2885.5,2883.9,13.78245253]
[1769437874047,3.716995,2885.4,2883.9,13.78245253]
[1769437874208,2.44,2885.4,2883.9,13.78245253]
[1769437874409,0.128,2885.1,2883.4,13.78245253]
[1769437874642,0.128,2885.2,2883.5,1.37824525]
[1769437874817,0.128,2885.0,2883.4,13.78245253]
[1769437875353,0.128,2884.6,2882.9,13.78245253]
[1769437875840,0.128,2884.6,2883.8,0.002]
[1769437876832,0.128,2884.7,2883.8,0.002]
[1769437877222,0.99466891,2884.7,2883.8,0.002]
[1769437877415,0.128,2884.5,2882.9,13.78245253]
[1769437877742,13.3613037,2884.0,2882.6,0.002]
[1769437877919,4.965138,2883.4,2881.7,13.78245253]
[1769437878124,0.128,2883.4,2881.8,13.78445253]
[1769437878512,0.128,2883.4,2881.8,0.002]
[1769437878718,0.128,2883.2,2881.8,0.002]
[1769437878959,0.128,2882.8,2881.8,0.002]
[1769437879248,0.128,2882.8,2881.5,0.002]
[1769437879249,0.128,2882.6,2881.5,0.002]
[1769437880356,7.37964638,2882.1,2880.1,12.78902226]
[1769437880670,0.128,2881.9,2879.6,12.78902226]
[1769437880953,0.128,2881.7,2879.6,12.78902226]
[1769437881520,0.128,2881.7,2880.1,12.78902226]
[1769437882037,0.128,2881.9,2880.4,12.79402226]
[1769437882239,3.46792711,2883.6,2880.4,13.66193985]
[1769437882442,3.46792711,2883.6,2880.8,12.78902226]
[1769437882443,0.8670019,2883.5,2880.8,12.78902226]
[1769437882640,8.546766,2883.4,2880.8,12.78902226]
[1769437882951,0.128,2883.0,2880.9,14.06792449]
[1769437883323,0.128,2883.2,2880.9,14.06792449]
[1769437884223,0.128,2883.2,2880.9,14.93570304]
[1769437884557,0.128,2883.4,2880.9,14.06792449]
[1769437884859,0.128,2882.8,2880.9,14.06792449]
[1769437885220,0.128,2882.4,2881.0,1.47949245]
[1769437885446,0.128,2882.4,2880.4,0.005]
[1769437885648,0.128,2882.2,2880.4,0.005]
[1769437886124,0.128,2882.0,2880.4,0.005]
[1769437886526,30.0,2882.1,2880.4,0.005]
[1769437886864,0.128,2881.8,2880.4,0.005]
[1769437887224,0.128,2881.8,2880.4,12.79402226]
[1769437887520,0.128,2881.8,2880.5,14.06842449]
[1769437888028,0.99541206,2882.2,2880.5,14.06842449]
[1769437888577,0.99541206,2882.2,2878.4,4.38069016]
[1769437888578,13.77478565,2881.5,2878.7,12.78902226]
[1769437888850,6.95219011,2882.0,2877.8,1.563]
[1769437888851,0.128,2881.7,2879.5,12.79202226]
[1769437889258,0.128,2881.7,2877.1,1.26077258]
[1769437889259,13.90278565,2880.4,2877.1,1.26077258]
[1769437889432,1.06472743,2879.0,2877.2,12.78902226]
[1769437889633,0.181,2879.5,2877.4,12.78902226]
[1769437890330,0.128,2880.3,2877.6,12.78902226]
[1769437890860,0.128,2880.8,2877.6,12.78902226]
[1769437891162,0.128,2880.8,2878.2,12.78902226]
[1769437891347,0.128,2880.8,2878.4,12.78902226]
[1769437891348,0.99582181,2880.8,2878.4,12.78902226]
[1769437891560,2.5834,2880.7,2878.4,12.78902226]
[1769437891726,0.128,2880.7,2878.4,12.78902226]
[1769437892030,0.128,2881.4,2878.8,12.78902226]
[1769437892231,0.128,2881.4,2879.0,12.78902226]
[1769437892453,0.128,2881.5,2879.0,12.78902226]
[1769437893326,0.128,2881.5,2879.2,12.78902226]
[1769437893524,2.937564,2881.4,2879.2,12.78902226]
[1769437893946,13.77478565,2882.6,2879.2,12.78902226]
[1769437894146,3.553424,2882.4,2879.4,12.78902226]
[1769437894470,0.18099646,2883.3,2880.4,12.78902226]
[1769437894624,0.18099646,2883.3,2880.8,12.78902226]
[1769437894828,0.86700391,2883.5,2881.0,12.78902226]
[1769437895048,0.128,2883.6,2881.1,0.727]
[1769437895274,0.128,2883.6,2881.2,14.14062449]
[1769437895423,0.86683369,2884.1,2881.4,12.78902226]
[1769437895623,0.8668648,2884.0,2881.4,12.78902226]
[1769437895928,1.7330629,2884.9,2881.4,12.78902226]
[1769437895929,0.86697453,2883.6,2881.4,12.78902226]
[1769437896155,4.557537,2883.1,2881.2,1.35160223]
[1769437896343,16.891922,2882.9,2880.7,13.51602226]
[1769437896658,4.674407,2882.7,2880.7,13.51602226]
[1769437897358,0.129,2883.2,2880.9,12.78902226]
[1769437897562,3.973931,2883.0,2880.9,13.65680029]
[1769437897728,0.001,2883.2,2881.1,12.78902226]
[1769437898733,0.001,2883.2,2881.2,0.727]
[1769437899064,0.001,2883.2,2881.1,12.78902226]
[1769437899232,0.001,2883.0,2881.1,12.78902226]
[1769437899432,0.001,2883.0,2881.1,13.65672046]
[1769437899739,0.86675687,2884.4,2881.5,12.78902226]
[1769437900048,3.882156,2884.5,2881.5,12.78902226]
[1769437900373,6.95219011,2884.4,2881.6,13.51602226]
[1769437900572,2.456671,2884.3,2881.6,13.51602226]
[1769437900801,0.86669213,2884.6,2881.6,13.51602226]
[1769437901064,0.56133773,2884.5,2881.8,12.78902226]
[1769437901236,0.128,2884.4,2881.8,12.78902226]
[1769437901436,0.128,2883.8,2881.8,12.78902226]
[1769437901846,2.827734,2883.7,2881.8,12.78902226]
[1769437902076,0.128,2883.8,2881.8,12.78902226]
[1769437902252,3.448055,2883.7,2881.9,1.41406245]
[1769437902558,0.86682153,2884.1,2881.9,14.20308471]
[1769437902559,0.128,2884.0,2881.9,14.20308471]
[1769437903460,0.128,2884.0,2882.1,12.78902226]
[1769437903662,3.106301,2883.9,2882.1,12.78902226]
[1769437903961,2.918011,2883.9,2882.1,12.78902226]
[1769437904165,0.3912865,2883.8,2882.2,1.27890223]
[1769437904332,0.128,2883.8,2882.2,1.27890223]
[1769437904537,0.128,2883.8,2881.7,12.78902226]
[1769437904869,0.128,2883.8,2881.9,12.78902226]
[1769437905646,0.128,2883.7,2881.9,13.51602226]
[1769437905859,0.128,2883.7,2881.9,12.78902226]